bitfinex/quotes_ETHUSD_20250929
["timestamp","ask_amount","ask_price","bid_price","bid_amount"]
[1759136310262,0.0004,4137.6,4137.5,22.2527762]
[1759136313678,0.0004,4137.6,4137.5,19.2017762]
[1759136313879,0.0004,4137.6,4137.5,22.2527762]
[1759136315081,0.0004,4137.6,4137.5,22.0192762]
[1759136315670,0.4492,4137.9,4137.8,2.41674319]
[1759136315876,0.4492,4137.9,4137.8,5.46674319]
[1759136316264,0.4492,4137.9,4137.8,19.96674319]
[1759136319005,0.4492,4137.9,4137.8,16.91674319]
[1759136319193,0.4492,4137.9,4137.8,19.96674319]
[1759136319368,0.0006,4137.9,4137.8,22.72440544]
[1759136320064,0.0006,4137.9,4137.8,22.48490544]
[1759136321783,0.0006,4137.9,4137.8,22.72440544]
[1759136322607,0.0006,4137.9,4137.8,22.48490544]
[1759136331019,0.0006,4137.9,4137.8,19.43490544]
[1759136331230,0.0006,4137.9,4137.8,22.48390544]
[1759136332616,0.6721,4137.9,4137.8,19.96574319]
[1759136333986,0.6721,4137.9,4137.8,16.91674319]
[1759136334186,0.6721,4137.9,4137.8,19.96574319]
[1759136336128,0.0006,4137.9,4137.8,20.20524319]
[1759136336427,0.0006,4137.9,4137.8,22.68466483]
[1759136337913,0.0006,4137.9,4137.8,22.68366483]
[1759136338315,0.0006,4137.9,4137.8,19.63566483]
[1759136338521,0.0006,4137.9,4137.8,19.39616483]
[1759136338685,0.0006,4137.9,4137.8,22.44416483]
[1759136340420,0.0006,4137.9,4137.8,22.68366483]
[1759136340623,0.0008,4138.1,4138.0,2.41662638]
[1759136340821,0.4409,4138.1,4138.0,5.46462638]
[1759136345527,0.6723,4138.1,4138.0,5.46462638]
[1759136346520,0.6723,4138.1,4138.0,2.41662638]
[1759136346736,0.6723,4138.1,4137.9,2.41662669]
[1759136347034,0.0008,4138.1,4138.0,5.46362638]
[1759136347194,0.0008,4138.1,4137.0,0.002]
[1759136347195,0.792,4138.0,4137.0,0.002]
[1759136347392,5.41704791,4137.3,4136.8,0.002]
[1759136347594,5.4173274,4136.8,4136.7,0.002]
[1759136348030,6.0888274,4136.8,4136.7,0.002]
[1759136348328,3.6715,4136.8,4136.7,0.002]
[1759136349231,3.7684637,4136.8,4136.7,0.002]
[1759136349412,4.95033668,4136.8,4136.7,0.002]
[1759136350729,1.95033668,4136.8,4136.7,0.002]
[1759136350927,3.7684637,4136.8,4136.7,0.002]
[1759136351225,0.7684637,4136.8,4136.7,0.002]
[1759136353606,7.66350271,4136.5,4136.4,0.002]
[1759136353806,3.0,4136.4,4136.2,0.002]
[1759136354102,10.93174103,4136.3,4136.2,0.002]
[1759136354331,11.72374103,4136.3,4136.2,0.002]
[1759136354537,11.82072378,4136.3,4136.2,0.002]
[1759136354741,12.51552378,4136.3,4136.2,0.002]
[1759136354942,14.39404462,4136.3,4136.2,0.002]
[1759136356241,16.65004462,4136.3,4136.2,0.002]
[1759136356944,3.09698275,4136.3,4136.2,0.002]
[1759136357111,6.14498275,4136.3,4136.2,0.002]
[1759136357442,6.57978275,4136.3,4136.2,0.002]
[1759136358232,3.53178275,4136.3,4136.2,0.002]
[1759136359642,6.19360236,4136.3,4136.2,0.002]
[1759136359835,7.39744643,4136.3,4136.2,0.002]
[1759136360567,12.91156785,4136.3,4136.2,0.002]
[1759136361235,7.39744643,4136.3,4136.2,0.002]
[1759136361580,2.41793079,4135.8,4135.3,1e-08]
[1759136361738,2.41793079,4135.8,4132.7,0.428]
[1759136361739,0.792,4135.1,4133.6,0.2256]
[1759136361937,3.0,4134.4,4133.6,0.2256]
[1759136362161,3.056,4134.3,4133.6,0.2256]
[1759136362669,2.41884766,4134.2,4133.6,0.2256]
[1759136362875,5.41891507,4134.1,4133.6,0.2256]
[1759136363168,5.41891507,4134.1,4133.7,0.2256]
[1759136363567,5.85371507,4134.1,4133.5,0.2256]
[1759136363768,3.4348,4134.1,4133.5,0.2256]
[1759136363957,5.85370975,4134.1,4133.5,0.2256]
[1759136364363,3.4348,4134.1,4133.5,0.2256]
[1759136364671,3.72762464,4134.0,4133.5,0.2256]
[1759136364867,0.72762464,4134.0,4133.5,0.2256]
[1759136365056,0.4348,4133.9,4133.4,14.5]
[1759136365373,3.0,4133.7,4133.5,0.2256]
[1759136365570,3.0552,4134.0,4133.6,0.2256]
[1759136365779,3.0552,4134.0,4133.4,14.928]
[1759136365780,3.059,4134.0,4133.4,14.928]
[1759136365973,0.72767228,4133.6,4133.4,17.3473112]
[1759136366172,0.72767228,4133.6,4133.4,14.5]
[1759136366554,0.72767228,4133.6,4133.5,0.6536]
[1759136366868,0.72767228,4133.6,4133.5,3.07285728]
[1759136367070,3.0,4134.0,4133.6,2.41918797]
[1759136367277,0.72763169,4133.8,4133.6,3.07278797]
[1759136367472,0.72763169,4133.8,4133.7,0.2256]
[1759136370083,0.72763169,4133.8,4133.7,14.7256]
[1759136370881,0.72763169,4133.8,4133.7,17.14474023]
[1759136371088,3.0,4133.7,4132.0,0.2256]
[1759136371381,3.0,4133.5,4132.4,0.2256]
[1759136371581,1.454,4134.5,4132.4,0.2256]
[1759136371582,0.4348,4134.6,4132.4,0.2256]
[1759136371877,0.4348,4134.6,4132.8,2.41961891]
[1759136371878,0.72766523,4133.6,4132.8,2.41961891]
[1759136372078,3.14691745,4133.6,4132.9,3.7236]
[1759136372281,3.14691745,4133.6,4133.0,3.2956]
[1759136372444,2.41925222,4133.6,4133.0,17.7956]
[1759136372646,2.41908407,4133.8,4133.1,0.2256]
[1759136372647,0.72766522,4133.7,4133.1,0.2256]
[1759136373079,0.72766522,4133.7,4133.1,2.64508292]
[1759136373382,0.72766522,4133.7,4133.2,14.5]
[1759136373548,0.72766522,4133.7,4133.3,0.2256]
[1759136373751,0.72766522,4133.7,4133.4,0.2256]
[1759136373972,8.48784014,4134.3,4133.5,0.2256]
[1759136374242,0.7276264,4133.9,4133.6,14.5]
[1759136374447,0.7276264,4133.9,4133.7,0.2256]
[1759136375264,0.7276264,4133.9,4133.8,14.5]
[1759136377190,3.23305709,4134.4,4133.8,14.5]
[1759136377191,3.44948387,4134.4,4133.8,17.14468171]
[1759136377560,0.72760875,4134.1,4133.8,14.5]
[1759136378183,0.72760875,4134.1,4133.8,14.0]
[1759136378484,0.72760875,4134.1,4133.8,16.64465506]
[1759136380088,0.72760875,4134.1,4133.9,0.2441]
[1759136380465,0.792,4133.9,4133.6,0.002]
[1759136380784,3.0,4133.7,4133.6,0.002]
[1759136381358,5.85344023,4133.7,4133.6,0.002]
[1759136381676,6.09954023,4133.7,4133.6,0.002]
[1759136381869,7.28164066,4133.7,4133.6,0.002]
[1759136382071,7.51104066,4133.7,4133.6,0.002]
[1759136382264,12.28946999,4133.7,4133.6,0.002]
[1759136386067,13.74346999,4133.7,4133.6,0.002]
[1759136386288,12.28946999,4133.7,4133.6,0.002]
[1759136386904,6.84734066,4133.7,4133.6,0.002]
[1759136387069,9.91934066,4133.7,4133.6,0.002]
[1759136387769,6.21137434,4133.3,4133.2,0.002]
[1759136387993,9.28337434,4133.3,4133.2,0.002]
[1759136388297,10.32668447,4133.3,4133.2,0.002]
[1759136388484,10.57078447,4133.3,4133.2,0.002]
[1759136390115,11.0643042,4133.3,4133.2,0.002]
[1759136390311,12.26814827,4133.3,4133.2,0.002]
[1759136390681,12.26734827,4133.3,4133.2,0.002]
[1759136391082,11.88773814,4133.3,4133.2,0.002]
[1759136394218,13.72134922,4133.3,4133.2,0.002]
[1759136394591,13.22782949,4133.3,4133.2,0.002]
[1759136394916,10.15682949,4133.3,4133.2,0.002]
[1759136395103,13.48125882,4133.3,4133.2,0.002]
[1759136395417,16.55325882,4133.3,4133.2,0.002]
[1759136400034,7.66543288,4133.2,4133.1,1e-08]
[1759136400336,7.6656085,4132.9,4132.8,0.002]
[1759136400498,7.66566705,4132.8,4132.7,1e-08]
[1759136400851,8.32936705,4132.8,4132.7,1e-08]
[1759136401232,11.83736705,4132.8,4132.7,1e-08]
[1759136403030,8.76236705,4132.8,4132.7,1e-08]
[1759136403216,13.27352439,4132.8,4132.7,1e-08]
[1759136403396,3.21190126,4132.4,4132.3,0.002]
[1759136403594,14.06433059,4132.4,4132.3,0.002]
[1759136403799,14.72803059,4132.4,4132.3,0.002]
[1759136404141,15.93187466,4132.4,4132.3,0.002]
[1759136404713,5.41990126,4132.4,4132.3,0.2461]
[1759136405039,3.508,4132.4,4132.3,0.6791]
[1759136405220,3.075,4132.4,4132.3,0.6791]
[1759136405608,6.075,4132.4,4132.3,0.6791]
[1759136406051,6.075,4132.4,4131.1,2.42065992]
[1759136406052,1.454,4132.2,4130.9,0.2441]
[1759136406249,10.1991507,4131.0,4130.9,0.2441]
[1759136406540,1.32732275,4132.4,4130.9,0.6771]
[1759136406736,3.0,4132.1,4131.0,0.6771]
[1759136407044,5.15814555,4132.3,4131.1,0.6771]
[1759136407219,3.091,4132.2,4131.2,0.6771]
[1759136407419,3.0,4132.1,4131.3,0.6771]
[1759136407620,3.0,4131.9,4131.5,2.42038941]
[1759136407825,3.0,4131.9,4131.6,0.6771]
[1759136408039,3.0,4131.9,4131.7,0.6771]
[1759136408228,3.0,4131.9,4131.7,14.5]
[1759136408427,3.0,4131.9,4131.8,0.6771]
[1759136412233,3.0,4132.8,4131.8,0.98685169]
[1759136412450,2.41985606,4132.5,4131.9,0.6982]
[1759136412660,3.0,4132.3,4132.0,0.6982]
[1759136412962,2.41985606,4132.5,4131.8,0.002]
[1759136412963,3.0,4132.1,4131.8,2.42223782]
[1759136413160,3.088,4132.1,4131.8,0.002]
[1759136413341,3.088,4132.1,4131.8,2.42223305]
[1759136413541,3.088,4132.1,4131.9,0.7034]
[1759136413948,3.0,4132.1,4132.0,0.7034]
[1759136414155,3.0,4132.2,4132.0,0.7034]
[1759136414536,3.0,4132.2,4132.1,0.7034]
[1759136415565,2.9992,4132.2,4132.1,0.7034]
[1759136415764,4.77842933,4132.6,4132.1,0.7034]
[1759136415765,3.087,4132.4,4132.1,0.7034]
[1759136415935,3.087,4132.4,4132.2,0.7034]
[1759136416266,0.37961436,4132.8,4132.3,0.7034]
[1759136416462,3.086,4132.7,4132.4,0.7034]
[1759136416663,3.086,4132.7,4132.4,0.4664]
[1759136416964,3.086,4132.7,4132.5,0.237]
[1759136417159,3.086,4132.7,4132.6,0.237]
[1759136417760,6.086,4132.7,4132.6,0.237]
[1759136418362,6.086,4132.7,4132.6,0.7034]
[1759136418363,3.0,4132.7,4132.6,0.7034]
[1759136418563,2.41943523,4133.2,4132.6,0.7034]
[1759136418873,3.0,4133.0,4132.7,0.237]
[1759136419448,3.086,4133.1,4132.8,0.4664]
[1759136419974,3.0,4133.0,4132.9,0.7034]
[1759136420152,3.0,4133.0,4132.9,0.4664]
[1759136420670,3.084,4133.2,4132.9,0.4664]
[1759136420874,3.084,4133.2,4133.0,0.237]
[1759136421071,3.084,4133.2,4132.9,0.4664]
[1759136421072,6.084,4133.2,4133.1,0.237]
[1759136421442,3.0,4133.2,4133.1,0.237]
[1759136421671,3.0,4133.2,4133.1,3.12289142]
[1759136421875,3.0,4133.2,4133.1,0.7034]
[1759136422171,3.0,4133.2,4133.1,0.72759491]
[1759136422476,3.0,4133.2,4133.1,3.14708633]
[1759136422976,3.0,4133.2,4133.1,0.7034]
[1759136423348,0.001,4133.3,4133.1,0.7034]
[1759136423677,0.001,4133.3,4133.2,0.237]
[1759136429453,0.001,4133.3,4133.2,0.7034]
[1759136429980,0.001,4133.3,4133.2,0.237]
[1759136432879,0.001,4133.3,4132.9,0.237]
[1759136433052,0.4332,4133.3,4132.9,0.237]
[1759136433379,0.4332,4133.3,4132.8,2.41965812]
[1759136433568,0.001,4133.3,4132.9,2.65659908]
[1759136433773,0.001,4133.3,4133.0,0.237]
[1759136434711,0.001,4133.3,4133.1,0.237]
[1759136435785,0.001,4133.3,4133.2,0.4664]
[1759136436098,0.001,4133.3,4132.9,0.4664]
[1759136436290,0.001,4133.3,4133.2,0.237]
[1759136438807,0.0002,4133.3,4133.2,0.237]
[1759136439797,0.0002,4133.3,4133.0,0.247]
[1759136440104,0.0002,4133.3,4133.0,2.66654128]
[1759136440283,0.0002,4133.3,4133.0,2.41954128]
[1759136440602,3.4289,4133.5,4133.1,0.247]
[1759136440804,0.4295,4133.4,4133.1,0.247]
[1759136441101,0.4295,4133.4,4133.0,2.41954406]
[1759136441303,0.4295,4133.4,4133.0,0.247]
[1759136442298,4.77842933,4133.4,4132.5,3.083]
[1759136442601,4.77842933,4133.1,4132.5,2.4198379]
[1759136442789,4.77842933,4133.1,4132.4,0.247]
[1759136442790,4.77842933,4133.1,4132.6,0.247]
[1759136443099,3.0,4133.2,4132.6,0.7158]
[1759136443273,3.0,4133.2,4132.7,2.66672551]
[1759136443473,3.0,4133.2,4132.8,0.247]
[1759136443698,3.0,4133.2,4132.9,0.247]
[1759136443898,3.4295,4133.2,4132.9,0.247]
[1759136444074,5.84895522,4133.2,4132.5,2.41979022]
[1759136444275,5.84895522,4133.2,4132.6,0.247]
[1759136444486,5.84895522,4133.2,4132.6,2.66677131]
[1759136445474,5.84895522,4133.2,4132.6,0.247]
[1759136445884,3.4295,4133.2,4132.6,2.66678222]
[1759136446081,5.84893672,4133.2,4132.6,2.66678222]
[1759136446296,5.84893672,4133.2,4132.6,0.247]
[1759136446499,2.41949142,4133.1,4132.6,0.247]
[1759136446902,3.4295,4133.0,4132.6,0.247]
[1759136447599,2.41968833,4132.8,4132.1,0.002]
[1759136447904,6.08212163,4132.9,4132.1,2.66904041]
[1759136448100,0.4305,4133.3,4132.1,0.83000248]
[1759136448299,3.0,4133.1,4132.7,2.41968775]
[1759136448472,3.001,4133.3,4132.8,0.247]
[1759136448672,3.4305,4133.3,4132.9,0.247]
[1759136449101,2.65245124,4133.2,4132.5,2.41982302]
[1759136449299,3.08195124,4133.2,4132.5,2.41982302]
[1759136449503,0.4295,4133.1,4132.5,2.41982302]
[1759136449890,0.4295,4133.1,4132.6,0.247]
[1759136450080,5.84987802,4133.3,4132.6,2.66674051]
[1759136450282,8.92087802,4133.3,4132.7,2.66672108]
[1759136450810,9.15387802,4133.3,4132.7,2.66672108]
[1759136451812,9.15387802,4133.3,4132.7,0.247]
[1759136452407,9.15387802,4133.3,4132.7,2.66672386]
[1759136452811,9.15387802,4133.3,4132.7,2.66671979]
[1759136453915,6.7345,4133.3,4132.7,2.66671979]
[1759136454293,9.15387822,4133.3,4132.7,2.66671979]
[1759136454814,9.15387822,4133.3,4132.7,0.247]
[1759136455117,2.41943932,4133.2,4132.7,0.247]
[1759136455715,0.6625,4133.1,4132.7,0.247]
[1759136455917,0.4295,4133.0,4132.7,0.247]
[1759136458006,0.4295,4133.0,4132.7,2.6667066]
[1759136458312,0.4295,4133.0,4132.8,2.41966532]
[1759136458620,0.4295,4133.2,4132.8,0.247]
[1759136458916,0.4295,4133.1,4132.8,0.247]
[1759136459112,0.001,4133.3,4132.3,3.5388]
[1759136459314,3.066,4133.2,4132.9,14.747]
[1759136459512,3.066,4133.2,4133.0,0.247]
[1759136459714,3.066,4133.2,4132.9,14.5]
[1759136459924,3.4955,4133.2,4132.9,14.5]
[1759136460312,3.066,4133.2,4132.9,14.747]
[1759136460511,3.4295,4133.2,4132.9,14.747]
[1759136460945,3.4295,4133.2,4132.9,14.5]
[1759136461420,5.41944551,4133.2,4132.9,14.5]
[1759136461603,0.4295,4133.1,4132.9,14.5]
[1759136462829,3.0,4133.2,4132.9,14.5]
[1759136463028,3.0,4133.2,4132.9,14.747]
[1759136463524,3.4295,4133.2,4132.9,14.747]
[1759136464401,3.0,4133.2,4132.9,14.747]
[1759136464606,3.001,4133.3,4132.9,14.747]
[1759136464813,3.4305,4133.3,4132.9,14.747]
[1759136465037,3.001,4133.3,4132.9,14.747]
[1759136465211,0.4295,4133.2,4132.9,14.747]
[1759136465417,0.4287,4133.2,4132.9,14.747]
[1759136467637,2.84894597,4133.2,4132.9,14.5]
[1759136467804,0.4295,4133.2,4132.9,14.747]
[1759136468455,3.4295,4133.2,4132.9,14.747]
[1759136469839,3.063,4133.3,4133.0,0.2418]
[1759136469840,3.001,4133.3,4133.0,0.2418]
[1759136470017,0.001,4133.3,4133.1,0.02419491]
[1759136470218,0.001,4133.3,4133.2,0.2418]
[1759136470416,0.001,4133.3,4133.2,2.66123288]
[1759136471533,0.001,4133.3,4133.2,3.11043288]
[1759136471739,0.001,4133.3,4133.2,3.1346272]
[1759136472036,0.001,4133.3,4133.2,5.43412999]
[1759136472615,0.001,4133.3,4133.2,3.11043288]
[1759136473042,0.001,4133.3,4133.2,17.61043288]
[1759136473250,0.001,4133.3,4131.7,0.002]
[1759136473251,2.41978415,4132.6,4131.7,0.002]
[1759136473415,12.7960558,4132.6,4131.7,0.002]
[1759136473615,2.42001839,4132.2,4131.7,0.002]
[1759136473948,0.001,4133.3,4132.9,2.41960691]
[1759136474133,0.001,4133.3,4133.0,3.30831381]
[1759136474335,0.001,4133.3,4133.2,2.41943288]
[1759136474568,0.001,4133.3,4133.2,20.87611689]
[1759136474720,0.001,4133.3,4133.2,21.52372257]
[1759136474921,0.001,4133.3,4133.2,18.84123641]
[1759136475447,0.001,4133.3,4133.2,20.62972257]
[1759136476230,0.001,4133.3,4133.2,18.84123641]
[1759136476538,0.001,4133.3,4133.2,21.95423641]
[1759136477723,0.001,4133.3,4133.2,18.84123641]
[1759136478026,0.001,4133.3,4133.2,21.95223641]
[1759136483479,0.001,4133.3,4133.2,22.07303641]
[1759136486361,0.001,4133.3,4133.2,21.64253641]
[1759136486555,0.001,4133.3,4133.2,22.07303641]
[1759136489865,0.001,4133.3,4133.2,21.64253641]
[1759136490175,0.001,4133.3,4133.2,21.63353641]
[1759136490477,0.0002,4133.3,4133.2,22.06403641]
[1759136491679,0.0002,4133.3,4133.2,18.29023641]
[1759136491838,0.0002,4133.3,4133.2,21.39023641]
[1759136494083,0.0002,4133.3,4133.2,18.29023641]
[1759136494285,0.0002,4133.3,4133.2,21.39023641]
[1759136495890,0.0002,4133.3,4133.2,21.63153641]
[1759136497385,0.0002,4133.3,4133.2,21.38523641]
[1759136499462,0.0002,4133.3,4133.2,21.61713641]
[1759136500093,0.0002,4133.3,4133.2,18.52213641]
[1759136500295,0.0002,4133.3,4133.2,21.61613641]
[1759136500457,0.0002,4133.3,4133.2,15.87080353]
[1759136500789,0.6797,4133.3,4133.2,20.01243288]
[1759136501790,0.6797,4133.3,4133.2,14.5]
[1759136502195,0.6797,4133.3,4133.2,17.592]
[1759136502762,0.6797,4133.3,4133.2,14.5]
[1759136503096,6.09907434,4133.3,4133.2,14.5]
[1759136503273,6.95090819,4133.3,4133.2,14.5]
[1759136504366,6.09907434,4133.3,4133.2,14.5]
[1759136507368,2.41949142,4133.1,4132.8,0.002]
[1759136507564,3.0,4132.9,4132.8,0.002]
[1759136508096,6.0991085,4132.9,4132.8,0.002]
[1759136508395,7.42872841,4132.9,4132.8,0.002]
[1759136508600,0.0002,4133.3,4133.2,2.41943288]
[1759136508805,0.0002,4133.3,4133.2,6.18653288]
[1759136509169,0.001,4133.8,4133.7,2.41914023]
[1759136509597,0.001,4133.8,4133.7,5.76104023]
[1759136509818,0.001,4133.8,4133.7,17.15104023]
[1759136510018,0.001,4133.8,4133.7,22.66126621]
[1759136515522,0.0002,4133.8,4133.7,22.66126621]
[1759136516405,0.0002,4133.8,4133.7,23.15459278]
[1759136517427,0.0002,4133.8,4133.7,23.27539278]
[1759136520596,0.0002,4133.8,4133.7,27.50539278]
[1759136522029,0.0002,4133.8,4133.7,24.06739278]
[1759136524636,0.0002,4133.8,4133.7,19.49029278]
[1759136524844,0.4326,4133.8,4133.7,22.47049278]
[1759136525013,0.0002,4133.8,4133.7,22.47049278]
[1759136526327,0.4326,4133.8,4133.7,22.47049278]
[1759136526530,0.6797,4133.8,4133.7,22.47049278]
[1759136527411,0.6797,4133.8,4133.7,20.01814023]
[1759136528559,0.4326,4133.8,4133.7,16.91914023]
[1759136528729,0.4326,4133.8,4133.7,20.01814023]
[1759136530842,0.0002,4133.8,4133.7,20.24774023]
[1759136532852,0.0002,4133.8,4133.7,20.70054023]
[1759136533032,0.0002,4133.8,4133.7,23.01251621]
[1759136533215,0.0002,4133.8,4133.7,22.55971621]
[1759136534845,0.0002,4133.8,4133.7,22.68051621]
[1759136535953,0.0002,4133.8,4133.7,23.16385798]
[1759136539518,0.0002,4133.8,4133.7,23.95585798]
[1759136539867,0.001,4134.2,4134.1,2.41890617]
[1759136540023,0.001,4134.2,4134.1,5.99569471]
[1759136540216,0.001,4134.2,4134.1,6.81599471]
[1759136540416,0.0002,4134.2,4134.1,21.31599471]
[1759136540629,0.0002,4134.2,4134.1,20.61649471]
[1759136540856,0.0002,4134.2,4134.1,20.86319471]
[1759136544735,0.0002,4134.2,4134.1,23.86319471]
[1759136544936,0.0002,4134.2,4134.1,20.86319471]
[1759136545859,0.0002,4134.2,4134.1,20.61649471]
[1759136546326,0.0002,4134.2,4134.1,20.86319471]
[1759136547860,0.0002,4134.2,4134.1,17.52349471]
[1759136548038,0.6793,4134.2,4134.1,20.61049471]
[1759136550863,0.44,4134.2,4134.1,20.61049471]
[1759136551266,0.44,4134.2,4134.1,20.61249471]
[1759136552165,0.0002,4134.2,4134.1,20.85919471]
[1759136552659,0.0002,4134.2,4134.1,20.61249471]
[1759136554766,0.6793,4134.2,4134.1,17.04170617]
[1759136554972,0.6793,4134.2,4134.1,20.12470617]
[1759136557976,0.6793,4134.2,4134.1,5.62470617]
[1759136558574,0.6543,4134.2,4134.1,20.12470617]
[1759136561655,0.6543,4134.2,4134.1,17.582]
[1759136562051,0.6543,4134.2,4134.1,20.00090617]
[1759136564576,0.6293,4134.2,4134.1,20.00090617]
[1759136564746,0.001,4134.3,4134.2,2.41884766]
[1759136564944,0.001,4134.3,4134.2,2.44303613]
[1759136565379,0.0002,4134.3,4134.2,2.44303613]
[1759136565577,0.0002,4134.3,4134.2,5.40798036]
[1759136565754,0.0002,4134.3,4134.2,3.11584766]
[1759136565947,0.0002,4134.3,4134.2,17.64003613]
[1759136566171,0.0002,4134.3,4134.2,17.73664766]
[1759136569926,0.4653,4134.3,4134.2,20.11664766]
[1759136570107,0.0002,4134.3,4134.2,20.11664766]
[1759136570276,0.0002,4134.3,4134.2,22.37040304]
[1759136571207,0.0002,4134.3,4134.2,22.60590304]
[1759136576822,0.0002,4134.3,4134.2,22.37040304]
[1759136577716,0.0002,4134.3,4134.2,22.60590304]
[1759136581120,0.0002,4134.3,4134.2,22.37040304]
[1759136581497,0.4653,4134.3,4134.2,22.37040304]
[1759136581895,0.0002,4134.3,4134.2,22.37040304]
[1759136584530,0.0002,4134.3,4134.2,22.60590304]
[1759136589729,0.0002,4134.3,4134.2,23.03750304]
[1759136589941,0.0002,4134.3,4134.2,28.05950304]
[1759136590140,0.0002,4134.3,4134.2,27.62790304]
[1759136590341,0.0004,4134.7,4134.6,2.41861365]
[1759136590550,0.0004,4134.7,4134.6,5.96934367]
[1759136590747,0.0004,4134.7,4134.6,6.09014367]
[1759136590913,0.0004,4134.7,4134.6,20.82064367]
[1759136591117,0.0004,4134.7,4134.6,20.59014367]
[1759136591525,0.6806,4134.7,4134.6,17.03941365]
[1759136591726,0.6806,4134.7,4134.6,20.10641365]
[1759136594850,0.6806,4134.7,4134.6,14.6208]
[1759136595039,0.6806,4134.7,4134.6,17.566]
[1759136595653,0.6806,4134.7,4134.6,19.98461365]
[1759136596349,0.0004,4134.7,4134.6,19.98461365]
[1759136596548,0.0004,4134.7,4134.6,22.22494777]
[1759136596939,0.7043,4134.7,4134.6,14.5]
[1759136597855,3.12285515,4134.7,4134.6,14.5]
[1759136598522,0.7043,4134.7,4134.6,14.5]
[1759136599417,0.469,4134.7,4134.6,14.5]
[1759136599643,0.469,4134.7,4134.6,17.567]
[1759136599843,0.7043,4134.7,4134.6,17.567]
[1759136600429,0.0004,4134.7,4134.6,17.567]
[1759136600740,0.0004,4134.7,4134.6,19.98561365]
[1759136601619,0.0004,4134.7,4134.6,17.567]
[1759136601824,0.469,4134.7,4134.6,17.567]
[1759136602035,0.7043,4134.7,4134.6,17.567]
[1759136603221,0.469,4134.7,4134.6,17.567]
[1759136603427,0.7043,4134.7,4134.6,14.5]
[1759136603943,1.25852342,4134.7,4134.6,14.5]
[1759136604578,3.12285515,4134.7,4134.6,14.5]
[1759136605149,0.7043,4134.7,4134.6,14.5]
[1759136605555,3.12285515,4134.7,4134.6,14.5]
[1759136607275,2.88755515,4134.7,4134.6,14.5]
[1759136607577,3.12285515,4134.7,4134.6,14.5]
[1759136607875,0.0004,4134.7,4134.6,14.5]
[1759136608249,2.41895515,4134.7,4134.6,14.5]
[1759136608448,3.12285515,4134.7,4134.6,14.5]
[1759136608651,1.08992955,4134.7,4134.6,14.5]
[1759136608850,0.7043,4134.7,4134.6,14.5]
[1759136609069,0.0004,4134.7,4134.6,14.5]
[1759136609468,0.469,4134.7,4134.6,14.5]
[1759136609857,0.0004,4134.7,4134.6,14.5]
[1759136610072,0.0004,4134.7,4134.6,14.7333]
[1759136610476,0.0004,4134.7,4134.6,14.5]
[1759136610647,0.0004,4134.7,4134.6,17.15191365]
[1759136610852,0.0004,4134.7,4134.6,19.45860371]
[1759136611256,0.0004,4134.7,4134.6,19.88790371]
[1759136611680,0.0004,4134.7,4134.6,19.45860371]
[1759136611856,0.0004,4134.7,4134.6,19.88790371]
[1759136612390,0.0004,4134.7,4134.6,19.45860371]
[1759136612568,0.0004,4134.7,4134.6,19.88790371]
[1759136613167,0.0004,4134.7,4134.6,19.45860371]
[1759136613461,0.0004,4134.7,4134.6,20.00870371]
[1759136615186,0.001,4134.8,4134.6,20.00870371]
[1759136615187,0.0006,4134.8,4134.7,2.41855515]
[1759136615374,0.0006,4134.8,4134.7,8.0037174]
[1759136615679,0.0006,4134.8,4134.7,5.71885515]
[1759136615878,0.0006,4134.8,4134.7,20.21885515]
[1759136617085,0.0006,4134.8,4134.7,19.98555515]
[1759136619270,0.0006,4134.8,4134.7,20.22295515]
[1759136619657,0.0006,4134.8,4134.7,19.98555515]
[1759136619885,0.0006,4134.8,4134.7,22.49919704]
[1759136621787,0.0006,4134.8,4134.7,22.26179704]
[1759136621961,0.0006,4134.8,4134.7,22.49919704]
[1759136624794,0.0006,4134.8,4134.7,22.95389704]
[1759136626689,0.0006,4134.8,4134.7,22.49919704]
[1759136627500,0.0006,4134.8,4134.7,22.26179704]
[1759136631278,0.0006,4134.8,4134.7,22.49919704]
[1759136632486,0.0006,4134.8,4134.7,22.26179704]
[1759136632812,0.0006,4134.8,4134.7,22.49919704]
[1759136634124,0.0006,4134.8,4134.7,22.26179704]
[1759136636016,0.0006,4134.8,4134.7,22.49919704]
[1759136639292,0.0006,4134.8,4134.7,19.98555515]
[1759136639490,0.0006,4134.8,4134.7,20.67765515]
[1759136640319,0.0008,4135.1,4134.7,20.67765515]
[1759136640526,0.0008,4135.1,4134.9,2.41838432]
[1759136640697,0.0008,4135.1,4135.0,3.066]
[1759136641020,0.47,4135.1,4135.0,3.066]
[1759136641221,0.47,4135.1,4135.0,17.566]
[1759136643344,0.0008,4135.1,4135.0,17.566]
[1759136643512,0.6993,4135.1,4135.0,17.566]
[1759136645253,0.6993,4135.1,4135.0,14.5]
[1759136645425,8.26080599,4135.1,4134.6,3.067]
[1759136645623,0.6985,4135.0,4134.6,3.067]
[1759136645844,0.6985,4134.9,4134.7,14.5]
[1759136646150,0.6985,4134.8,4134.7,14.5]
[1759136646949,0.0008,4135.1,4134.7,14.5]
[1759136647147,0.0008,4135.1,4134.7,14.7374]
[1759136647351,0.47,4135.1,4134.8,3.065]
[1759136647650,0.4692,4135.0,4134.8,3.065]
[1759136649461,0.0008,4135.1,4134.8,3.065]
[1759136649623,0.0008,4135.1,4134.8,3.3095]
[1759136649824,0.0008,4135.1,4134.8,3.065]
[1759136650155,0.0008,4135.1,4134.9,0.2445]